[Event "58th Akiba Rubinstein B 2022"]
[Site "Polanica-Zdroj"]
[Date "2022.08.14"]
[Round "2.7"]
[White "Wilk, Aleksander"]
[Black "Graff, Slawomir"]
[Result "1-0"]
[ECO "C01"]
[WhiteElo "1569"]
[BlackElo "1782"]
[Annotator "NA RC"]
[PlyCount "61"]
[EventDate "2022.08.13"]
[EventCountry "POL"]
[SourceTitle "playchess.com"]
[Source "ChessBase"]
[SourceQuality "1"]
[TimeControl "40/5400+30:1800+30"]

1. e4 {[%emt 0:00:02]} e6 {[%emt 0:02:33]} 2. d4 d5 3. exd5 {[%emt 0:00:09]} exd5 {[%emt 0:00:10]} 4. Bd3 {[%emt 0:00:05]} Bd6 {[%emt 0:00:06]} 5. Nf3 {[%emt 0:00:21]} Nf6 {[%emt 0:00:08]} 6. O-O {[%emt 0:00:28]} O-O {[%emt 0:00:07]} 7. c3 {[%emt 0:00:11]} Bg4 {[%emt 0:00:18]} 8. Bg5 {[%emt 0:01:25]} Nbd7 {[%emt 0:00:23]} 9. Nbd2 {[%emt 0:00:53]} c6 {[%emt 0:00:11]} 10. Qc2 {[%emt 0:00:41]} Qc7 {[%emt 0:00:06]} 11. Bh4 {[%emt 0:00:52]} Rae8 {[%emt 0:02:20]} 12. Rfe1 {[%emt 0:00:31]} Bh5 13. Bg3 Bxg3 {[%emt 0:02:29]} 14. hxg3 {[%emt 0:02:48]} Bg6 {[%emt 0:00:23]} 15. Bxg6 {[%emt 0:01:34]} hxg6 16. Rxe8 {[%emt 0:05:49]} Rxe8 {[%emt 0:00:22]} 17. Re1 {[%emt 0:00:25]} Rxe1+ {[%emt 0:00:24]} 18. Nxe1 {[%emt 0:00:05]} Qb8 {[%emt 0:00:15]} 19. b4 {[%emt 0:01:00]} Qe8 {[%emt 0:04:51]} 20. Kf1 {[%emt 0:06:55]} Ne4 {[%emt 0:02:53]} 21. Nd3 f5 22. Nf3 {[%emt 0:10:11]} Qe7 {[%emt 0:09:52]} 23. Qc1 {[%emt 0:11:44]} Kh7 24. Nde5 {[%emt 0:07:30]} Nxe5 {[%emt 0:23:36]} 25. Nxe5 {[%emt 0:00:16]} Qf6 {[%emt 0:13:43]} 26. Qe3 {[%emt 0:32:40]} g5 {[%emt 0:06:15]} 27. f4 {[%emt 0:00:30]} Qh6 {[%emt 0:08:23]} 28. Kg1 {[%emt 0:04:24]} Qh5 {[%emt 0:02:54]} 29. Nf3 {[%emt 0:02:07]} Nxg3 {[%emt 0:00:54]} 30. Nxg5+ {[%emt 0:00:12]} Kg6 {[%emt 0:00:46]} 31. Qe6# 1-0

[Event "58th Akiba Rubinstein B 2022"]
[Site "Polanica-Zdroj"]
[Date "2022.08.14"]
[Round "2.8"]
[White "Sypien, Natan"]
[Black "Rzenca, Jerzy"]
[Result "0-1"]
[ECO "B18"]
[WhiteElo "1780"]
[BlackElo "1668"]
[Annotator "NA RC"]
[PlyCount "54"]
[EventDate "2022.08.13"]
[EventCountry "POL"]
[SourceTitle "playchess.com"]
[Source "ChessBase"]
[SourceQuality "1"]
[TimeControl "40/5400+30:1800+30"]

1. e4 {[%emt 0:00:05]} c6 {[%emt 0:00:04]} 2. d4 {[%emt 0:00:09]} d5 {[%emt 0:00:04]} 3. Nc3 {[%emt 0:00:09]} dxe4 {[%emt 0:00:04]} 4. Nxe4 {[%emt 0:00:06]} Bf5 {[%emt 0:00:06]} 5. Ng3 {[%emt 0:00:07]} Bg6 {[%emt 0:00:06]} 6. N1e2 {[%emt 0:00:26]} e6 {[%emt 0:00:33]} 7. Nf4 {[%emt 0:00:39]} Bd6 {[%emt 0:00:40]} 8. Ngh5 {[%emt 0:01:20]} Bxh5 {[%emt 0:02:42]} 9. Nxh5 {[%emt 0:00:26]} g6 {[%emt 0:00:08]} 10. Nf4 {[%emt 0:04:54]} Qc7 {[%emt 0:01:38]} 11. g3 {[%emt 0:00:25]} Nd7 12. Bg2 {[%emt 0:09:26]} Ne7 {[%emt 0:02:56]} 13. Qe2 {[%emt 0:05:47]} O-O-O {[%emt 0:04:13]} 14. Bd2 {[%emt 0:05:48]} Nf5 {[%emt 0:01:58]} 15. c3 {[%emt 0:05:21]} e5 {[%emt 0:08:40]} 16. dxe5 {[%emt 0:01:03]} Rhe8 {[%emt 0:02:18]} 17. e6 {[%emt 0:03:22]} Nc5 {[%emt 0:00:30]} 18. O-O-O {[%emt 0:02:15]} Nxe6 {[%emt 0:21:42]} 19. Nxe6 {[%emt 0:00:10]} Rxe6 {[%emt 0:00:04]} 20. Qc4 {[%emt 0:02:50]} Qb6 {[%emt 0:00:48]} 21. Bg5 {[%emt 0:17:21]} Rde8 {[%emt 0:01:13]} 22. Rd2 {[%emt 0:02:01]} f6 {[%emt 0:08:22]} 23. Bf4 {[%emt 0:01:50]} Bxf4 {[%emt 0:14:09]} 24. Qxf4 {[%emt 0:00:07]} Qa6 {[%emt 0:00:48]} 25. b3 {[%emt 0:09:39]} Qa3+ {[%emt 0:03:03]} 26. Kb1 {[%emt 0:01:18]} Re1+ {[%emt 0:00:39]} 27. Rd1 {[%emt 0:00:02]} R8e2 {[%emt 0:01:29]} 0-1

[Event "58th Akiba Rubinstein B 2022"]
[Site "Polanica-Zdroj"]
[Date "2022.08.14"]
[Round "2.9"]
[White "Kossowski, Pawel"]
[Black "Oglaza, Dawid"]
[Result "1-0"]
[ECO "B67"]
[WhiteElo "1737"]
[BlackElo "1558"]
[Annotator "NA RC"]
[PlyCount "53"]
[EventDate "2022.08.13"]
[EventCountry "POL"]
[SourceTitle "playchess.com"]
[Source "ChessBase"]
[SourceQuality "1"]
[TimeControl "40/5400+30:1800+30"]

1. e4 {[%emt 0:00:03]} c5 {[%emt 0:00:07]} 2. Nf3 {[%emt 0:00:07]} d6 {[%emt 0:00:08]} 3. d4 {[%emt 0:00:12]} cxd4 {[%emt 0:00:07]} 4. Nxd4 {[%emt 0:00:06]} Nf6 {[%emt 0:00:19]} 5. Nc3 {[%emt 0:00:07]} Nc6 {[%emt 0:00:08]} 6. Bg5 {[%emt 0:00:54]} e6 {[%emt 0:00:13]} 7. Qd2 {[%emt 0:01:19]} a6 {[%emt 0:00:17]} 8. O-O-O {[%emt 0:01:34]} Bd7 {[%emt 0:00:25]} 9. f4 {[%emt 0:01:27]} h6 {[%emt 0:00:19]} 10. Bh4 {[%emt 0:01:46]} Nxe4 {[%emt 0:00:31]} 11. Qe1 {[%emt 0:00:03]} Nf6 {[%emt 0:00:47]} 12. Nf5 {[%emt 0:00:08]} Qa5 {[%emt 0:00:39]} 13. Nxd6+ {[%emt 0:02:01]} Bxd6 {[%emt 0:00:09]} 14. Rxd6 {[%emt 0:00:12]} Ne7 15. Bxf6 {[%emt 0:22:37]} gxf6 {[%emt 0:02:04]} 16. Qh4 {[%emt 0:03:55]} f5 {[%emt 0:04:32]} 17. Be2 {[%emt 0:04:11]} Ng6 {[%emt 0:02:27]} 18. Qf6 {[%emt 0:02:04]} Rd8 {[%emt 0:05:59]} 19. Bh5 {[%emt 0:13:13]} Rg8 {[%emt 0:00:29]} 20. Rhd1 {[%emt 0:04:24]} Qc5 {[%emt 0:04:02]} 21. g3 {[%emt 0:07:52]} a5 {[%emt 0:02:05]} 22. a4 {[%emt 0:04:29]} b6 {[%emt 0:08:15]} 23. Kb1 {[%emt 0:01:29]} Qc7 {[%emt 0:02:05]} 24. Nb5 {[%emt 0:01:32]} Qb8 {[%emt 0:01:48]} 25. R6d2 {[%emt 0:04:19]} Nh8 {[%emt 0:00:54]} 26. Nd6+ {[%emt 0:00:40]} Kf8 {[%emt 0:00:14]} 27. Nxf7 {[%emt 0:00:31]} 1-0

[Event "58th Akiba Rubinstein B 2022"]
[Site "Polanica-Zdroj"]
[Date "2022.08.14"]
[Round "2.11"]
[White "Lukasiewicz, Anna"]
[Black "Blaszkiewicz, Jakub"]
[Result "1-0"]
[ECO "B70"]
[WhiteElo "1954"]
[BlackElo "1405"]
[Annotator "NA RC"]
[PlyCount "64"]
[EventDate "2022.08.13"]
[EventCountry "POL"]
[SourceTitle "playchess.com"]
[Source "ChessBase"]
[SourceQuality "1"]
[TimeControl "40/5400+30:1800+30"]

1. e4 {[%emt 0:00:03]} c5 {[%emt 0:00:44]} 2. Nf3 {[%emt 0:00:14]} d6 {[%emt 0:00:14]} 3. d4 {[%emt 0:00:15]} cxd4 {[%emt 0:00:06]} 4. Nxd4 {[%emt 0:00:07]} Nf6 {[%emt 0:00:06]} 5. Nc3 {[%emt 0:00:12]} g6 {[%emt 0:00:08]} 6. Be2 {[%emt 0:01:09]} Bg7 {[%emt 0:00:30]} 7. O-O {[%emt 0:00:23]} O-O {[%emt 0:00:05]} 8. Bg5 {[%emt 0:03:39]} Nc6 {[%emt 0:00:32]} 9. Nb3 {[%emt 0:00:25]} a6 {[%emt 0:01:14]} 10. Kh1 {[%emt 0:08:55]} b5 {[%emt 0:01:10]} 11. a3 Bb7 {[%emt 0:02:38]} 12. f4 {[%emt 0:06:41]} Nd7 {[%emt 0:05:01]} 13. Bf3 {[%emt 0:07:21]} Nb6 {[%emt 0:02:05]} 14. Qe1 {[%emt 0:14:51]} h6 {[%emt 0:05:18]} 15. Bh4 {[%emt 0:01:22]} Nc4 {[%emt 0:02:37]} 16. Rb1 {[%emt 0:05:00]} b4 {[%emt 0:04:39]} 17. axb4 {[%emt 0:03:29]} Nxb4 {[%emt 0:02:23]} 18. Nd5 {[%emt 0:05:40]} Nxd5 {[%emt 0:02:52]} 19. exd5 {[%emt 0:00:22]} Re8 {[%emt 0:00:15]} 20. c3 {[%emt 0:12:37]} Rb8 {[%emt 0:07:22]} 21. Nd2 {[%emt 0:07:49]} Rc8 {[%emt 0:07:46]} 22. Nxc4 {[%emt 0:02:33]} Rxc4 {[%emt 0:00:42]} 23. Qd2 {[%emt 0:00:18]} Qa5 {[%emt 0:08:22]} 24. Rfe1 {[%emt 0:03:23]} g5 {[%emt 0:06:45]} 25. Bg3 {[%emt 0:00:44]} Bf6 {[%emt 0:16:03]} 26. fxg5 {[%emt 0:01:56]} hxg5 {[%emt 0:00:08]} 27. Bxd6 {[%emt 0:04:12]} g4 {[%emt 0:00:08]} 28. Bb4 {[%emt 0:01:06]} Qd8 {[%emt 0:09:49]} 29. Be4 {[%emt 0:01:54]} Kg7 {[%emt 0:01:50]} 30. Qe2 {[%emt 0:03:43]} Qc8 {[%emt 0:03:06]} 31. Bd3 {[%emt 0:02:00]} Rf4 {[%emt 0:02:21]} 32. Rf1 {[%emt 0:00:25]} e5 1-0

[Event "58th Akiba Rubinstein B 2022"]
[Site "Polanica-Zdroj"]
[Date "2022.08.14"]
[Round "2.12"]
[White "Penza, Denis"]
[Black "Krzyzosiak, Marta"]
[Result "0-1"]
[ECO "E73"]
[WhiteElo "1836"]
[BlackElo "1666"]
[Annotator "NA RC"]
[PlyCount "66"]
[EventDate "2022.08.13"]
[EventCountry "POL"]
[SourceTitle "playchess.com"]
[Source "ChessBase"]
[SourceQuality "1"]
[TimeControl "40/5400+30:1800+30"]

1. d4 {[%emt 0:00:04]} Nf6 {[%emt 0:00:13]} 2. c4 {[%emt 0:00:04]} g6 {[%emt 0:00:10]} 3. Nc3 {[%emt 0:00:04]} Bg7 {[%emt 0:00:08]} 4. e4 {[%emt 0:00:05]} d6 {[%emt 0:00:08]} 5. Be2 {[%emt 0:00:04]} O-O {[%emt 0:00:14]} 6. Bg5 {[%emt 0:00:05]} c5 {[%emt 0:00:09]} 7. d5 {[%emt 0:00:13]} h6 {[%emt 0:00:26]} 8. Bf4 {[%emt 0:00:14]} g5 {[%emt 0:08:56]} 9. Be3 {[%emt 0:02:44]} e6 {[%emt 0:04:49]} 10. h4 g4 {[%emt 0:29:45]} 11. Qd2 {[%emt 0:07:47]} Kh7 {[%emt 0:09:18]} 12. dxe6 {[%emt 0:04:06]} fxe6 {[%emt 0:02:56]} 13. O-O-O {[%emt 0:02:14]} Nc6 {[%emt 0:03:54]} 14. Qxd6 {[%emt 0:18:01]} Qxd6 {[%emt 0:02:14]} 15. Rxd6 {[%emt 0:00:05]} Nd4 {[%emt 0:02:34]} 16. Bxd4 {[%emt 0:17:45]} cxd4 {[%emt 0:00:47]} 17. Rxd4 {[%emt 0:00:52]} Nd5 {[%emt 0:02:13]} 18. Rd1 {[%emt 0:06:13]} Nxc3 {[%emt 0:01:26]} 19. bxc3 {[%emt 0:00:07]} Rxf2 {[%emt 0:00:51]} 20. Bxg4 {[%emt 0:03:35]} Rxg2 {[%emt 0:09:47]} 21. Bf3 {[%emt 0:05:33]} Rxa2 {[%emt 0:01:55]} 22. Kb1 {[%emt 0:00:39]} Rf2 {[%emt 0:02:49]} 23. e5 {[%emt 0:02:59]} Bxe5 {[%emt 0:01:21]} 24. Be4+ {[%emt 0:00:44]} Kg7 {[%emt 0:00:48]} 25. Nf3 {[%emt 0:00:55]} Bxc3 {[%emt 0:01:11]} 26. Rhg1+ {[%emt 0:01:40]} Kf7 {[%emt 0:01:39]} 27. h5 {[%emt 0:07:30]} a5 {[%emt 0:02:23]} 28. Rg6 {[%emt 0:16:06]} a4 {[%emt 0:05:37]} 29. Rxh6 {[%emt 0:01:27]} a3 {[%emt 0:00:20]} 30. Ng5+ {[%emt 0:00:55]} Kg7 {[%emt 0:02:12]} 31. Rg6+ {[%emt 0:01:43]} Kf8 {[%emt 0:00:25]} 32. Rd8+ {[%emt 0:01:22]} Ke7 {[%emt 0:00:07]} 33. Rxe6+ {[%emt 0:00:34]} Kxd8 {[%emt 0:01:08]} 0-1

[Event "58th Akiba Rubinstein B 2022"]
[Site "Polanica-Zdroj"]
[Date "2022.08.14"]
[Round "2.13"]
[White "Bednarczyk, Mateusz"]
[Black "Ochenduszko, Bartosz"]
[Result "0-1"]
[ECO "E90"]
[WhiteElo "1925"]
[BlackElo "1546"]
[Annotator "NA RC"]
[PlyCount "88"]
[EventDate "2022.08.13"]
[EventCountry "POL"]
[SourceTitle "playchess.com"]
[Source "ChessBase"]
[SourceQuality "1"]
[TimeControl "40/5400+30:1800+30"]

1. e4 {[%emt 0:00:03]} d6 {[%emt 0:00:10]} 2. d4 {[%emt 0:00:09]} g6 {[%emt 0:00:19]} 3. c4 {[%emt 0:02:13]} Bg7 {[%emt 0:01:09]} 4. Nc3 {[%emt 0:00:37]} Nf6 {[%emt 0:00:58]} 5. Nf3 {[%emt 0:00:36]} O-O {[%emt 0:09:11]} 6. Bg5 {[%emt 0:07:48]} c5 {[%emt 0:00:30]} 7. dxc5 {[%emt 0:00:01]} dxc5 {[%emt 0:00:00]} 8. Qxd8 {[%emt 0:00:00]} Rxd8 {[%emt 0:04:02]} 9. e5 {[%emt 0:11:07]} Ng4 {[%emt 0:08:33]} 10. Nd5 {[%emt 0:17:10]} Nc6 11. Nxe7+ {[%emt 0:00:03]} Nxe7 {[%emt 0:00:53]} 12. Bxe7 {[%emt 0:00:48]} Re8 {[%emt 0:08:56]} 13. Bxc5 {[%emt 0:01:43]} Nxe5 {[%emt 0:00:56]} 14. Nxe5 {[%emt 0:00:16]} Rxe5+ {[%emt 0:03:44]} 15. Be3 {[%emt 0:02:13]} Bg4 {[%emt 0:00:13]} 16. h3 {[%emt 0:12:34]} Be6 {[%emt 0:09:08]} 17. Be2 {[%emt 0:03:07]} f5 {[%emt 0:00:26]} 18. Bd4 {[%emt 0:00:07]} Rxe2+ {[%emt 0:01:23]} 19. Kxe2 {[%emt 0:01:59]} Bxc4+ {[%emt 0:00:12]} 20. Kf3 {[%emt 0:09:15]} Bxd4 {[%emt 0:10:17]} 21. Rhd1 {[%emt 0:01:42]} Bb6 {[%emt 0:00:32]} 22. b3 {[%emt 0:07:12]} Bb5 {[%emt 0:04:00]} 23. h4 {[%emt 0:03:17]} Ba5 {[%emt 0:01:13]} 24. Rac1 {[%emt 0:03:21]} Re8 {[%emt 0:01:43]} 25. Rd5 {[%emt 0:00:31]} Be2+ {[%emt 0:07:14]} 26. Kg3 {[%emt 0:03:48]} Bb6 {[%emt 0:08:49]} 27. a4 {[%emt 0:06:40]} f4+ {[%emt 0:04:07]} 28. Kh3 {[%emt 0:00:08]} Bxf2 29. Rc7 Re3+ {[%emt 0:03:05]} 30. Kh2 {[%emt 0:00:35]} Bg3+ {[%emt 0:00:47]} 31. Kg1 {[%emt 0:04:31]} Bb5 {[%emt 0:00:31]} 32. Rd8+ {[%emt 0:01:05]} Be8 33. Rc1 Kf7 {[%emt 0:01:55]} 34. Rdd1 {[%emt 0:02:20]} Bc6 {[%emt 0:00:55]} 35. b4 {[%emt 0:00:09]} Re2 {[%emt 0:05:42]} 36. b5 {[%emt 0:00:37]} Rxg2+ {[%emt 0:00:11]} 37. Kf1 {[%emt 0:00:20]} Bf3 {[%emt 0:00:56]} 38. Rd3 {[%emt 0:00:24]} Rf2+ {[%emt 0:02:55]} 39. Kg1 {[%emt 0:00:07]} Be2 {[%emt 0:02:19]} 40. Rd7+ {[%emt 0:00:00]} Ke6 {[%emt 0:00:00]} 41. Rxh7 {[%emt 0:08:28]} f3 {[%emt 0:01:54]} 42. Rxb7 {[%emt 0:01:32]} Rg2+ {[%emt 0:00:08]} 43. Kh1 {[%emt 0:00:03]} Rh2+ {[%emt 0:00:09]} 44. Kg1 {[%emt 0:00:03]} f2# {[%emt 0:00:43]} 0-1

[Event "58th Akiba Rubinstein B 2022"]
[Site "Polanica-Zdroj"]
[Date "2022.08.14"]
[Round "2.14"]
[White "Wojcik, Grzegorz"]
[Black "Halhoul, Adam"]
[Result "0-1"]
[ECO "D30"]
[WhiteElo "1509"]
[BlackElo "1672"]
[Annotator "NA RC"]
[PlyCount "86"]
[EventDate "2022.08.13"]
[EventCountry "POL"]
[SourceTitle "playchess.com"]
[Source "ChessBase"]
[SourceQuality "1"]
[TimeControl "40/5400+30:1800+30"]

1. d4 {[%emt 0:00:03]} d5 {[%emt 0:00:30]} 2. c4 {[%emt 0:00:09]} e6 {[%emt 0:00:05]} 3. Nf3 {[%emt 0:00:23]} c6 {[%emt 0:00:17]} 4. g3 {[%emt 0:00:26]} dxc4 {[%emt 0:00:15]} 5. Bg2 {[%emt 0:00:29]} Nf6 {[%emt 0:00:44]} 6. O-O {[%emt 0:00:10]} Bd6 {[%emt 0:01:10]} 7. Qc2 {[%emt 0:00:45]} b5 {[%emt 0:03:07]} 8. a4 {[%emt 0:00:39]} Bb7 {[%emt 0:00:21]} 9. b3 {[%emt 0:04:59]} cxb3 {[%emt 0:02:37]} 10. Qxb3 {[%emt 0:00:18]} a6 {[%emt 0:06:18]} 11. Nbd2 {[%emt 0:06:56]} O-O {[%emt 0:01:28]} 12. e4 {[%emt 0:00:46]} Be7 {[%emt 0:02:37]} 13. e5 {[%emt 0:06:41]} Nd5 {[%emt 0:02:03]} 14. Ne4 {[%emt 0:02:13]} Nd7 {[%emt 0:05:16]} 15. Ba3 {[%emt 0:01:44]} b4 {[%emt 0:02:40]} 16. Rfc1 {[%emt 0:05:24]} a5 {[%emt 0:03:36]} 17. Bb2 {[%emt 0:02:16]} Qb6 {[%emt 0:05:46]} 18. Qc4 {[%emt 0:17:26]} Rac8 {[%emt 0:04:17]} 19. Nc5 {[%emt 0:00:45]} Nxc5 {[%emt 0:00:39]} 20. dxc5 {[%emt 0:00:04]} Qa7 {[%emt 0:00:36]} 21. Bd4 {[%emt 0:04:10]} Ba6 {[%emt 0:01:03]} 22. Qb3 {[%emt 0:00:38]} Rfd8 {[%emt 0:00:15]} 23. Bf1 {[%emt 0:06:41]} Bxf1 {[%emt 0:02:21]} 24. Kxf1 {[%emt 0:00:17]} Nc7 {[%emt 0:02:19]} 25. Rc4 {[%emt 0:01:41]} Rd5 {[%emt 0:00:40]} 26. Rac1 {[%emt 0:01:38]} Na6 {[%emt 0:00:56]} 27. Qe3 {[%emt 0:00:46]} Rcd8 {[%emt 0:01:09]} 28. Kg2 {[%emt 0:04:21]} Qb7 {[%emt 0:03:19]} 29. Qb3 {[%emt 0:02:29]} h6 {[%emt 0:00:12]} 30. Qb2 {[%emt 0:03:46]} Qa7 {[%emt 0:03:12]} 31. Qc2 {[%emt 0:01:10]} Rb8 {[%emt 0:23:46]} 32. Nd2 {[%emt 0:02:08]} Rxd4 {[%emt 0:01:50]} 33. Rxd4 {[%emt 0:00:05]} Nxc5 {[%emt 0:00:50]} 34. Rd6 {[%emt 0:06:17]} Bxd6 {[%emt 0:03:26]} 35. exd6 {[%emt 0:00:02]} Nb7 {[%emt 0:01:12]} 36. Qxc6 {[%emt 0:00:54]} Qd4 {[%emt 0:03:47]} 37. Ne4 {[%emt 0:08:35]} Nd8 {[%emt 0:03:29]} 38. Qe8+ {[%emt 0:01:34]} Kh7 {[%emt 0:00:02]} 39. f3 {[%emt 0:00:55]} Qb2+ {[%emt 0:00:37]} 40. Kh3 {[%emt 0:00:00]} Qxc1 {[%emt 0:00:00]} 41. d7 {[%emt 0:12:16]} Qf1+ {[%emt 0:02:18]} 42. Kh4 {[%emt 0:00:28]} Qxf3 {[%emt 0:01:05]} 43. Nd6 {[%emt 0:00:35]} b3 {[%emt 0:01:38]} 0-1

[Event "58th Akiba Rubinstein B 2022"]
[Site "Polanica-Zdroj"]
[Date "2022.08.14"]
[Round "2.15"]
[White "Latacz, Grzegorz"]
[Black "Terkiewicz, Bruno"]
[Result "1/2-1/2"]
[ECO "E00"]
[WhiteElo "1449"]
[BlackElo "1473"]
[Annotator "NA RC"]
[PlyCount "50"]
[EventDate "2022.08.13"]
[EventCountry "POL"]
[SourceTitle "playchess.com"]
[Source "ChessBase"]
[SourceQuality "1"]
[TimeControl "40/5400+30:1800+30"]

1. d4 {[%emt 0:00:02]} Nf6 {[%emt 0:00:03]} 2. c4 {[%emt 0:00:06]} e6 {[%emt 0:00:04]} 3. a3 {[%emt 0:00:03]} d5 {[%emt 0:00:09]} 4. Nc3 {[%emt 0:00:12]} c6 {[%emt 0:01:18]} 5. cxd5 {[%emt 0:00:15]} exd5 {[%emt 0:00:36]} 6. Bg5 {[%emt 0:00:12]} Be7 {[%emt 0:00:15]} 7. e3 {[%emt 0:00:14]} O-O {[%emt 0:00:09]} 8. Bd3 {[%emt 0:00:12]} Re8 {[%emt 0:00:31]} 9. Nf3 {[%emt 0:00:46]} Nbd7 {[%emt 0:00:48]} 10. Qc2 {[%emt 0:01:26]} h6 {[%emt 0:00:29]} 11. Bf4 {[%emt 0:00:22]} Nf8 {[%emt 0:08:46]} 12. O-O {[%emt 0:00:20]} Ne6 {[%emt 0:00:37]} 13. Bg3 {[%emt 0:00:41]} Bd6 14. Ne5 {[%emt 0:09:05]} Qe7 {[%emt 0:07:08]} 15. Rfd1 {[%emt 0:09:58]} Ng5 {[%emt 0:15:43]} 16. Re1 {[%emt 0:13:29]} Nge4 {[%emt 0:06:06]} 17. Nxe4 {[%emt 0:03:43]} Nxe4 {[%emt 0:00:13]} 18. Bxe4 {[%emt 0:00:49]} dxe4 {[%emt 0:00:05]} 19. Nc4 {[%emt 0:02:56]} Bxg3 {[%emt 0:00:08]} 20. hxg3 {[%emt 0:00:16]} Be6 {[%emt 0:00:35]} 21. Rab1 {[%emt 0:01:56]} Bd5 {[%emt 0:04:50]} 22. b4 {[%emt 0:02:05]} Qe6 {[%emt 0:02:01]} 23. Rec1 {[%emt 0:01:14]} Rec8 {[%emt 0:04:58]} 24. Qe2 {[%emt 0:06:17]} Rc7 {[%emt 0:02:52]} 25. Rc2 {[%emt 0:04:20]} Rac8 {[%emt 0:00:55]} 1/2-1/2

[Event "58th Akiba Rubinstein B 2022"]
[Site "Polanica-Zdroj"]
[Date "2022.08.15"]
[Round "3.1"]
[White "Trusz, Julia"]
[Black "Chmiel, Marcin"]
[Result "0-1"]
[ECO "D11"]
[WhiteElo "1706"]
[BlackElo "2192"]
[Annotator "NA RC"]
[PlyCount "120"]
[EventDate "2022.08.13"]
[EventCountry "POL"]
[SourceTitle "playchess.com"]
[Source "ChessBase"]
[SourceQuality "1"]
[TimeControl "40/5400+30:1800+30"]

1. d4 {[%emt 0:00:07]} d5 {[%emt 0:00:51]} 2. c4 {[%emt 0:00:34]} c6 {[%emt 0:00:05]} 3. Nf3 {[%emt 0:00:49]} Nf6 {[%emt 0:00:08]} 4. Qc2 {[%emt 0:00:40]} dxc4 {[%emt 0:00:07]} 5. Qxc4 {[%emt 0:00:39]} Bf5 {[%emt 0:00:06]} 6. g3 {[%emt 0:02:15]} e6 {[%emt 0:00:07]} 7. Bg2 {[%emt 0:00:21]} Be7 {[%emt 0:00:06]} 8. O-O {[%emt 0:00:58]} O-O {[%emt 0:00:08]} 9. e3 {[%emt 0:02:33]} Nbd7 {[%emt 0:00:14]} 10. Rd1 {[%emt 0:01:52]} Rc8 {[%emt 0:00:47]} 11. Qe2 {[%emt 0:02:06]} Bg6 {[%emt 0:00:29]} 12. Nc3 {[%emt 0:02:34]} b5 {[%emt 0:00:34]} 13. b3 {[%emt 0:11:40]} Ne4 {[%emt 0:09:12]} 14. Bb2 {[%emt 0:16:27]} Nxc3 {[%emt 0:05:19]} 15. Bxc3 {[%emt 0:00:10]} Be4 $14 {[%emt 0:00:35]} 16. Nd2 {[%emt 0:23:09]} Bxg2 {[%emt 0:00:57]} 17. Kxg2 {[%emt 0:00:08]} f5 {[%emt 0:14:24]} 18. f3 {[%emt 0:05:06]} Nb6 {[%emt 0:07:21]} 19. e4 {[%emt 0:09:14]} Bf6 {[%emt 0:03:42]} 20. Nf1 {[%emt 0:07:20]} Qe7 {[%emt 0:04:27]} 21. Rac1 {[%emt 0:06:50]} g6 {[%emt 0:07:18]} 22. Ne3 {[%emt 0:03:21]} Bg7 {[%emt 0:03:03]} 23. Nc2 {[%emt 0:00:42]} fxe4 {[%emt 0:04:22]} 24. fxe4 {[%emt 0:00:13]} c5 {[%emt 0:03:08]} 25. Qxb5 {[%emt 0:02:23]} Qb7 {[%emt 0:01:53]} 26. Qe2 {[%emt 0:00:14]} Rfd8 {[%emt 0:02:11]} 27. Qg4 {[%emt 0:01:01]} cxd4 {[%emt 0:01:33]} 28. Qxe6+ {[%emt 0:00:22]} Kh8 {[%emt 0:05:03]} 29. Bxd4 {[%emt 0:00:07]} Re8 {[%emt 0:01:07]} 30. Bxg7+ {[%emt 0:00:51]} Kxg7 {[%emt 0:00:02]} 31. Qd6 {[%emt 0:00:41]} Qxe4+ {[%emt 0:03:47]} 32. Kg1 {[%emt 0:00:06]} Rxc2 {[%emt 0:00:22]} 33. Rxc2 {[%emt 0:00:31]} Qxc2 {[%emt 0:00:09]} 34. Rf1 {[%emt 0:00:48]} Kg8 {[%emt 0:04:56]} 35. Qf6 {[%emt 0:00:34]} Qc5+ {[%emt 0:00:19]} 36. Kh1 {[%emt 0:00:11]} Qd5+ {[%emt 0:01:13]} 37. Kg1 {[%emt 0:00:07]} Qe6 {[%emt 0:00:24]} 38. Qxe6+ {[%emt 0:01:05]} Rxe6 {[%emt 0:00:02]} 39. Rc1 {[%emt 0:00:10]} Re2 {[%emt 0:06:57]} 40. a4 {[%emt 0:00:00]} Nd5 {[%emt 0:00:00]} 41. Rc8+ {[%emt 0:01:03]} Kf7 {[%emt 0:01:44]} 42. Rd8 {[%emt 0:00:37]} Ne7 {[%emt 0:03:59]} 43. Ra8 {[%emt 0:03:54]} Rb2 {[%emt 0:04:54]} 44. Rxa7 {[%emt 0:00:45]} Rxb3 {[%emt 0:00:06]} 45. a5 {[%emt 0:01:52]} Rb2 {[%emt 0:01:08]} 46. a6 {[%emt 0:00:59]} Ra2 {[%emt 0:00:18]} 47. g4 {[%emt 0:01:46]} g5 {[%emt 0:01:07]} 48. h3 {[%emt 0:01:23]} h6 {[%emt 0:00:20]} 49. Kh1 {[%emt 0:00:58]} Kf6 {[%emt 0:00:30]} 50. Ra8 {[%emt 0:00:52]} Nc6 {[%emt 0:02:59]} 51. Kg1 {[%emt 0:02:32]} Kg7 {[%emt 0:00:45]} 52. Kh1 {[%emt 0:01:01]} Nb4 {[%emt 0:01:30]} 53. Rb8 {[%emt 0:00:35]} Nxa6 {[%emt 0:00:23]} 54. Rb7+ {[%emt 0:00:08]} Kf6 {[%emt 0:00:20]} 55. Rb6+ {[%emt 0:02:03]} Ke5 {[%emt 0:00:33]} 56. Rxh6 {[%emt 0:02:12]} Kf4 {[%emt 0:00:10]} 57. Rc6 {[%emt 0:04:23]} Kg3 {[%emt 0:03:03]} 58. Rc3+ {[%emt 0:00:35]} Kh4 {[%emt 0:00:09]} 59. Kg1 {[%emt 0:01:44]} Nb4 {[%emt 0:00:29]} 60. Rb3 {[%emt 0:04:02]} Nd5 {[%emt 0:00:17]} 0-1